Cogmind - Beta 16 @@@ ROGUE MODE // 2026.01.08 @ 18:20:56 Player: Triffids Result: Self-destructed Performance ------------- Evolutions (2) 1000 Regions Visited (3) 600 Robots Destroyed (40) 200 Value Destroyed (1078) 1078 Prototype IDs (3) 60 Alien Tech Used (0) 0 Bonus (0) 0 TOTAL SCORE: 2938 Bonus ------- None Cogmind --------- Core Integrity 388/550 Matter 166/300 Energy 100/100 System Corruption 0% Temperature Cool (0) Movement Core (100) Ox1 Location -8/Materials Parts ------- > --- POWER (1) -------- (None) > --- PROPULSION (4) --- (None) > --- UTILITY (4) ------ Improved Signal Interpreter Improved Light Armor Plating > --- WEAPON (2) ------- Katana > --- INVENTORY (5) ---- Improved Ion Engine Titanium Leg Sensor Array Mini Grenade Launcher Peak State ------------ > --- POWER ------------ Improved Ion Engine > --- PROPULSION ------- Aluminum Leg Aluminum Leg Aluminum Leg Aluminum Leg > --- UTILITY ---------- Improved Sensor Array Improved Signal Interpreter Improved Terrain Scanner Terrain Scan Processor > --- WEAPON ----------- Heavy Assault Rifle Flak Cannon > --- INVENTORY -------- Ion Engine Titanium Leg Sensor Array Mini Grenade Launcher Katana [Rating: 23] Favorites ----------- Power Light Ion Engine Engine Light Ion Engine Propulsion Aluminum Leg Leg Aluminum Leg Utility Terrain Scan Processor Device Improved Terrain Scanner Processor Terrain Scan Processor Protection Light Armor Plating Weapon EM Pulse Gun Energy Gun EM Pulse Gun Ballistic Gun Assault Rifle Ballistic Cannon Light Cannon Launcher Mini Grenade Launcher Special Weapon Mining Laser Slashing Weapon Katana Build | -11 -10 -9 -8 ------- Run | Yrd Mat Mat Mat Slots Evolved 4 | . . 2 2 Power . | . . . . Propulsion 2 | . . . 2 Utility 2 | . . 2 . Weapon . | . . . . Parts Attached 34 | 7 4 5 18 Power 5 | 1 1 1 2 Engine 5 | 1 1 1 2 Core . | . . . . Reactor . | . . . . Propulsion 9 | 2 1 1 5 Treads . | . . . . Leg 9 | 2 1 1 5 Wheel . | . . . . Hover . | . . . . Flight . | . . . . Utility 10 | 2 1 2 5 Device 5 | 2 . 1 2 Storage . | . . . . Processor 3 | . 1 1 1 Hackware . | . . . . Protection 2 | . . . 2 Artifact . | . . . . Weapon 10 | 2 1 1 6 Energy Gun 2 | 1 . . 1 Energy Cannon . | . . . . Ballistic Gun 3 | 1 . . 2 Ballistic Cannon 2 | . . 1 1 Launcher 1 | . . . 1 Special Weapon 1 | . 1 . . Impact Weapon . | . . . . Slashing Weapon 1 | . . . 1 Piercing Weapon . | . . . . Special Melee Weapon . | . . . . Unidentified Prototypes 1 | . . . 1 Parts Lost 12 | . . . 12 Power 1 | . . . 1 Propulsion 4 | . . . 4 Utility 3 | . . . 3 Weapon 4 | . . . 4 Highest Loss Streak 10 | . . . 10 To Critical Strikes . | . . . . Average Backups 4 | 3 4 4 4 Power . | . 1 1 1 Propulsion . | 1 . . . Utility 1 | . 1 1 1 Weapon 1 | 1 1 1 1 Tool/Special . | . . . . Unused Backups 6 | . 2 . 4 Power 2 | . . . 2 Propulsion 1 | . 1 . . Utility 2 | . . . 2 Weapon 1 | . 1 . . Tool/Special . | . . . . Average Slot Usage (%) 95 | . 100 99 91 Engine 10 | . 14 11 9 Leg 27 | . 28 22 29 Device 15 | . 15 22 14 Processor 16 | . 12 21 17 Protection 1 | . . . 3 Energy Gun 7 | . 14 11 3 Ballistic Gun 6 | . 11 2 4 Ballistic Cannon 6 | . . 8 8 Peak Build Rating 23 | 9 10 12 23 Average Rating 14 | 5 9 11 19 On Entrance 7 | . 9 10 12 Avg Prop Armor Cover (%) 30 | 30 . . . Naked Turns . | . . . . Heaviest Build 23 | 11 11 10 23 Greatest Support 47 | 20 20 20 47 Greatest Overweight (x) 1 | . . . 1 Average Overweight (x) . | . . . . Largest Inventory Capacity 5 | 5 5 5 5 Average Capacity 5 | 5 5 5 5 Most Carried 5 | 5 5 5 5 Average Carried 4 | 3 4 4 4 Final Capacity 5 | 5 5 5 5 Final Carried 5 | 4 5 5 4 Class Distribution -------------------- 31% | Skirmisher 27% | Mutant 24% | Scavenger-Mutant 16% | Scavenger-Skirmisher Dominant Class ---------------- Mutant | -10/Materials Skirmisher | -9/Materials Scavenger-Mutant | -8/Materials Resources | -11 -10 -9 -8 ----------- Run | Yrd Mat Mat Mat Matter Collected 949 | 303 128 167 351 Remotely . | . . . . Salvage Created 1334 | 181 242 250 661 Parts 74 | 15 21 8 30 Haulers Intercepted 1 | . 1 . . Recyclers Shooed 2 | . . . 2 Parts Field Recycled . | . . . . Retrieved Matter . | . . . . Parts Self-Destructed . | . . . . Prevented . | . . . . Parts Restored . | . . . . Kills | -11 -10 -9 -8 ------- Run | Yrd Mat Mat Mat Combat Hostiles Destroyed 24 | . 6 4 14 Guns 12 | . 6 . 6 Cannons 10 | . . 4 6 AOE 2 | . . . 2 Classes Destroyed 13 | 2 4 2 5 Worker 1 | . . . 1 Builder 3 | . 3 . . Tunneler 4 | 4 . . . Hauler 1 | . 1 . . Recycler 4 | 1 . 1 2 Watcher 3 | . 1 1 1 Swarmer 6 | . 6 . . Grunt 7 | . . 2 5 Brawler 1 | . . . 1 Duelist 1 | . . . 1 Sentry 6 | . . 2 4 Specialist 2 | . . . 2 Heavy 1 | . . . 1 Best Kill Streak 5 | 3 4 3 5 Combat Bots Only 4 | . 3 2 4 Max Kills in Single Turn 2 | 1 2 1 2 Gunslinging . | . . . . Exploded 1 | . . . 1 Melee . | . . . . Uniques/NPCs Destroyed . | . . . . Combat | -11 -10 -9 -8 -------- Run | Yrd Mat Mat Mat Hostile Shots Fired 145 | . 23 11 111 Missed 44 | . 4 6 34 Hits 101 | . 19 5 77 Projectile 101 | . 19 5 77 Critical Strikes 4 | . . . 4 Damage Taken 1677 | . 187 65 1425 Core 219 | . 42 15 162 Absorbed by Shields . | . . . . Core Remaining (%) 93 | 100 83 96 . Volleys Fired 106 | 11 36 14 45 Largest 2 | 2 2 2 2 Hottest 100 | 60 100 70 100 Shots Fired 199 | 22 63 28 86 Gun 129 | 22 54 16 37 Cannon 56 | . . 12 44 Launcher 4 | . . . 4 Special 10 | . 9 . 1 Kinetic 123 | 11 27 14 71 Thermal 10 | . 9 . 1 Explosive 4 | . . . 4 Electromagnetic 62 | 11 27 14 10 Robot Hit Streak 17 | 4 5 6 17 Robot Miss Streak 11 | 2 3 4 11 Penetration Max . | . . . . Secondary Targets . | . . . . Shots Hit Robots 129 | 13 26 19 71 Core Hits 82 | 5 12 9 56 Critical Kills . | . . . . Critical Parts Destroyed . | . . . . Critical Strikes 4 | . 1 2 1 Blast 2 | . . 2 . Corrupt 1 | . 1 . . Sever 1 | . . . 1 Melee Attacks 9 | . . . 9 Impact . | . . . . Slashing 9 | . . . 9 Piercing . | . . . . Sneak Attacks . | . . . . Combat Hostiles . | . . . . Follow-up Attacks . | . . . . Damage Inflicted 2966 | 171 445 325 2025 Guns 1094 | 171 371 125 427 Cannons 962 | . . 172 790 Explosions 635 | . 74 28 533 Melee 264 | . . . 264 Ramming 11 | . . . 11 Kinetic 1567 | 67 200 184 1116 Thermal 145 | . 74 28 43 Explosive 490 | . . . 490 Electromagnetic 489 | 104 171 113 101 Impact . | . . . . Slashing 264 | . . . 264 Piercing . | . . . . Highest Corruption . | . . . . Average Corruption . | . . . . Corruption Purged . | . . . . Corruption Blocked . | . . . . Overload Shots . | . . . . Overflow Damage 103 | . 21 . 82 Projectiles . | . . . . Explosions 94 | . 21 . 73 Melee 9 | . . . 9 Knockbacks 15 | . . . 15 Impact . | . . . . Kinetic 13 | . . . 13 Secondary 2 | . . . 2 Self-Inflicted Damage 108 | . 32 . 76 Shots 3 | . 1 . 2 Rammed . | . . . . Targets Rammed 2 | . . . 2 Kicked 2 | . . . 2 Crushed . | . . . . Highest Temperature 414 | . 140 12 414 Average Temperature 44 | . 54 9 45 Received Heat Transfer 498 | . . 39 459 Effects 1 | . . . 1 Shutdowns 1 | . . . 1 Siege Activations . | . . . . Martial Activations . | . . . . Shielding Activations . | . . . . Robots Disrupted . | . . . . Combat Hostiles . | . . . . Robots Corrupted . | . . . . Combat Hostiles . | . . . . Parts Fried 2 | 1 1 . . Impact Corruptions . | . . . . Robots Melted . | . . . . Combat Hostiles . | . . . . Parts Melted . | . . . . Heat Transferred 250 | . 150 50 50 Parts Sabotaged . | . . . . Parts Stolen . | . . . . Parts Stripped . | . . . . Power Chain Reactions 4 | . 2 1 1 Alert | -11 -10 -9 -8 ------- Run | Yrd Mat Mat Mat Maximum Alert Level 1 | . . . 1 Low Security (%) 94 | 100 100 100 90 Level 1 5 | . . . 9 Level 2 . | . . . . Level 3 . | . . . . Level 4 . | . . . . Level 5 . | . . . . High Security . | . . . . Max Security . | . . . . Peak Influence 304 | 5 98 83 304 Initial 20 | . 3 20 13 Average 46 | 1 42 37 56 Influence Increases 1016 | 25 215 140 636 Destroy 0b10 Robot/C 480 | . 120 80 280 Destroy 0b10 Robot/NC 80 | 25 25 10 20 Destroy Leader 158 | . 24 32 102 Successful Hack 8 | . 4 . 4 Select Force Hacks 30 | . . . 30 Disable Machine 90 | . 15 15 60 Destroy Structure 80 | . 12 3 65 Partial Spotted 15 | . . . 15 Lose Combat Pursuer 75 | . 15 . 60 Influence Decreases 784 | 20 171 156 437 Entered New Map 51 | . 2 29 20 Time Decay 613 | 20 169 127 297 Lost Part 120 | . . . 120 Squads Dispatched 4 | . . 1 3 Investigation 1 | . . . 1 Extermination . | . . . . Reinforcement 3 | . . 1 2 Assault . | . . . . Garrison . | . . . . Intercept . | . . . . Searches Triggered . | . . . . Construction Impeded . | . . . . Haulers Reinforced . | . . . . Active Scanning Responses . | . . . . Cargo Convoy Interrupts . | . . . . Stealth | -11 -10 -9 -8 --------- Run | Yrd Mat Mat Mat Distress Signals 1 | . . . 1 Communications Jammed . | . . . . Distress Signals . | . . . . Times Spotted 40 | . 10 9 21 Peak Tracking Total 6 | . 4 2 6 Tactical Retreats 4 | . 1 . 3 Traps | -11 -10 -9 -8 ------- Run | Yrd Mat Mat Mat Traps Triggered 1 | . . 1 . Indirectly . | . . . . Trap Hack Attempts . | . . . . Triggered . | . . . . Disarmed . | . . . . Reprogrammed . | . . . . Reused . | . . . . Traps Extracted . | . . . . Installed . | . . . . Triggered . | . . . . Machines | -11 -10 -9 -8 ---------- Run | Yrd Mat Mat Mat Machines Disabled 6 | . 1 1 4 Max in Single Turn 1 | . 1 1 1 Machines Repaired . | . . . . Machines Dismantled . | . . . . Machines Sabotaged . | . . . . Overloaded Fab Kills . | . . . . Hacking | -11 -10 -9 -8 --------- Run | Yrd Mat Mat Mat Machines Accessed 7 | . 1 1 5 Terminals 5 | . 1 . 4 Fabricators . | . . . . Repair Stations . | . . . . Recycling Units 1 | . . 1 . Scanalyzers 1 | . . . 1 Garrison Access . | . . . . Total Hacks 21 | . 2 2 17 Successful 13 | . 1 2 10 Failed 8 | . 1 . 7 Catastrophic 2 | . . . 2 Database Lockouts . | . . . . Manual 9 | . . . 9 Terminals 15 | . 2 . 13 Fabricators . | . . . . Repair Stations . | . . . . Recycling Units 2 | . . 2 . Scanalyzers 4 | . . . 4 Garrison Access . | . . . . Terminal Hacks 4 | . 1 . 3 Prototype ID Bank 1 | . . . 1 Locate Traps 2 | . 1 . 1 Zone Layout 1 | . . . 1 Fabricator Hacks . | . . . . Repair Station Hacks . | . . . . Recycling Unit Hacks 2 | . . 2 . Report Inventory 1 | . . 1 . Retrieve Components 1 | . . 1 . Scanalyzer 3 | . . . 3 Retrieve Study 3 | . . . 3 Garrison Access Hacks . | . . . . Unauthorized Hacks 4 | . . . 4 Terminals 3 | . . . 3 Botnet 3 | . . . 3 Fabricators . | . . . . Repair Stations . | . . . . Recycling Units . | . . . . Scanalyzers 1 | . . . 1 Extract 1 | . . . 1 Garrison Access . | . . . . Data Cores Recovered . | . . . . Used . | . . . . Hacking Detections 5 | . 1 . 4 Full Trace Events . | . . . . Feedback Events . | . . . . Feedback Blocked . | . . . . Robot Schematics Acquired . | . . . . Robots Built . | . . . . Authchips . | . . . . Time . | . . . . Total Robot Build Rating . | . . . . Part Schematics Acquired 1 | . . . 1 Parts Built . | . . . . Authchips . | . . . . Time . | . . . . Total Part Build Rating . | . . . . Part Studies Acquired 3 | . . . 3 Parts Repaired . | . . . . Time . | . . . . Parts Recycled . | . . . . Recycled Matter . | . . . . Retrieved Matter . | . . . . Retrieved Components 4 | . . 4 . Parts Scanalyzed . | . . . . Part Schematics Acquired . | . . . . Parts Damaged . | . . . . Bothacking | -11 -10 -9 -8 ------------ Run | Yrd Mat Mat Mat Used RIF Installer . | . . . . Robots Hacked . | . . . . Non-combat . | . . . . Combat . | . . . . Robot Hacks Applied . | . . . . Relay Couplers Released . | . . . . Fabnet Peak Effective % . | . . . . Robots Rewired . | . . . . Allies Hacked . | . . . . Hacks Repelled . | . . . . Allies | -11 -10 -9 -8 -------- Run | Yrd Mat Mat Mat Total Allies . | . . . . Largest Group . | . . . . Highest-Rated Group . | . . . . Highest-Rated Ally . | . . . . Total Orders . | . . . . Ally Attacks . | . . . . Total Damage . | . . . . Kills . | . . . . Allies Corrupted . | . . . . Allies Melted . | . . . . Intel | -11 -10 -9 -8 ------- Run | Yrd Mat Mat Mat Active Infowar (turns) 1647 | . 426 299 922 Sensors 1213 | . . 297 916 Terrain 1240 | . 426 299 515 Seismic 33 | . 33 . . Robot Analysis Total . | . . . . Derelict Logs Recovered . | . . . . Drone Launches . | . . . . Drone Recoveries . | . . . . Exploration | -11 -10 -9 -8 ------------- Run | Yrd Mat Mat Mat Turns Passed 1774 | 118 426 299 931 Spaces Moved 1087 | 63 227 165 632 Core 19 | 19 . . . Treads . | . . . . Legs 1068 | 44 227 165 632 Wheels . | . . . . Hover . | . . . . Flight . | . . . . Fastest Speed 50 | 50 120 120 105 Average Speed 115 | 98 120 120 113 Slowest Speed 175 | 120 120 120 175 Overloaded Moves . | . . . . Propulsion Burnouts . | . . . . Robots Hopped . | . . . . Potential Cave-ins . | . . . . Cave-ins Triggered . | . . . . Exploration Rate (%) 27 | 4 39 17 50 Regions Visited 3 Branch Regions . Pre-discovered Areas . | . . . . Known Exits Taken 1 | . . 1 . Unknown Exits Taken 2 | 1 1 . . Scrap Searched . | . . . . Spaces Dug 2 | . 2 . . Terrain Destroyed 102 | . 10 3 89 Melee . | . . . . Projectile 2 | . 2 . . AOE 100 | . 8 3 89 Terrain Rammed . | . . . . Walls Destroyed . | . . . . Machines Disabled . | . . . . Actions | -11 -10 -9 -8 --------- Run | Yrd Mat Mat Mat Total 1374 | 95 297 238 744 Wait 92 | 6 20 47 19 Move 1084 | 62 226 164 632 Hop . | . . . . Pick Up 19 | 9 3 3 4 Fast Attach 11 | 2 . 2 7 Attach 9 | 5 . 2 2 Detach 1 | . . . 1 Swap 23 | . 9 3 11 Drop 18 | . 3 3 12 Fire 106 | 11 36 14 45 Melee 9 | . . . 9 Ram . | . . . . Kick 2 | . . . 2 Crush . | . . . . Escape Stasis . | . . . . Rewire . | . . . . Trap . | . . . . Miscellaneous . | . . . . Route ------- -11/Scrapyard -10/Materials -9/Materials -8/Materials (discovered 1 exit: *Sto) History --------- Turn | Location | Event 19 | -11/Scrapyard | Discovered new exit (range 13) 119 | -11/Scrapyard | Entered Materials 324 | -10/Materials | Build established: Mutant 445 | -10/Materials | Discovered new exit (range 8) 545 | -10/Materials | Entered another Materials area 545 | -9/Materials | Evolved 2 slots: Utility x2 800 | -9/Materials | Discovered new exit (range 15) 816 | -9/Materials | Identified exit to Materials 844 | -9/Materials | Entered another Materials area 844 | -8/Materials | Evolved 2 slots: Propulsion x2 847 | -8/Materials | Discovered new exit (range 12) 901 | -8/Materials | Identified exit to Storage 1210 | -8/Materials | Build established: Skirmisher 1680 | -8/Materials | Build established: Scavenger-Mutant 1775 | -8/Materials | Self-destructed Last Messages --------------- 01708_ H-61 Shepherd destroyed. 01710_ The unstable cave ceiling collapses. 01719_ G-47 Trooper destroyed. 01722_ X-57 Shotgunner destroyed. 01723_ Aluminum Leg+ destroyed. 01725_ X-57 Shotgunner destroyed. 01730_ R-06 Scavenger collects Imp. Ion Engine. 01734_ R-06 Scavenger collects Com. Wheel. 01737_ R-06 Scavenger collects Lgt. Treads. 01738_ Aluminum Leg+ destroyed. 01742_ Acquired Imp. Light Armor Plating. 01751_ Kicked G-47 Trooper. 01755_ G-47 Trooper Lgt. Nuclear Core severed. 01760_ Aluminum Leg+ destroyed. 01760_ Critical hit (Burn: +37). 01766_ Imp. Sensor Array destroyed. 01766_ Aluminum Leg+ destroyed. 01768_ Flak Cannon destroyed. 01770_ Rnf. Ion Engine destroyed. 01770_ Destroyed Aluminum Leg. Map ----- +----------------------------------------------------+ | | | | | | | | | | | | | | | | | | | | | | | | | | | | | | | | | ?????????????????????????????????? | | ?????????????###???????????####### | | ?????????????# ??????????#//**!! | | ?????????????# T ??????????#//**!! | | ?????????????# ####?????# | | ?????????????# #"%####### | | ?##########??# # %% | | ?# #??# ! ########### # | | ?#""""" #### ########### # | | ??""""" @# # = # # # | | ??""""" g# ##### # # | | ??"""""g + ##### % # # | | ??""""" # = ! ! # # | | ??""""" !# % # # | | ???"""" #####+# = # | | ?? #??? ## ## % % | | ??#########?"? ! ## ## % | | ??????? ? #??" ## #? ## | | ?? ????? #??" ## #?? #?? | | ##????? #? #? #???## ####?? | | ?????""" !?? #? #????? ???? | | ?????""" ??#######? #?????? ???? | | ?????""" ?? ? ??+ +???????????? | | ?? ??"" ??? ???? ? #???????????? | | ?? ? ?##??? ??? #???????????# | | ?#?###+###?? ? ???? #???????????# | | ?### #?#?? ?? ?? ?? ?????????# | | ???# = #????? ? ???+???????????# | | ???# % ########## # #?# | | ?### ####??#??# ###########?# | | #### % ##########+#####???###### | | #?### ##?#### #??## | | ????# ##?##?# """ """ #??## """ | | ##### ####?## """ """ #?### """ | +----------------------------------------------------+ Best States ------------- Heat Dissipation 31 Energy Generation 12 Energy Capacity 265 Matter Stores 300 Matter Capacity 300 Sight Range 16 Robot Scan Range 15 Terrain Scan Range 16 Terrain Scan Density 85 Armor Coverage 150 Evasion (%) 55 Item Schematics ----------------- Med. Laser | -8/Materials | Extracted Robot Schematics ------------------ None Fabricated ------------ Nothing Repaired ---------- Nothing Studied --------- Aluminum Leg | -8/Materials | Hacked Titanium Leg | -8/Materials | Hacked Hvy. Assault Rifle | -8/Materials | Hacked Alien Tech Used ----------------- None Achievements -------------- None Challenges ------------ None Game ------ Seed GaussHugeProtomatter Manual? 0 Play Time 00:22:51 Cumulative 260.3 hours Start 2026.01.08 @ 17:54:12 End 2026.01.08 @ 18:20:56 Sessions 1 Manual Loads 0 Difficulty Rogue Special Mode None Game No. 495 Rogue 495 Adventurer 0 Explorer 0 Win Type - Total 1 Types 1/0/0/0/0/0/0/0/0/0 Lore% 30 Gallery% 48 Achievement% 27 Wizard Run 0 Options --------- Layout 1 ASCII 0 Keyboard 1 Movement Vi Keybinds 0 Fullscreen 0 Font 20/Smallcaps Map View 59x39 Zoom Use 0% Tactical HUD 1 Map Filters NONE Filters NONE Steam 1 RUN: 799a1856-096b-41cc-8299-105dca9dc944